Cogmind - Beta 14 @@@ ROGUE MODE // 2025.03.01 @ 19:35:12 Player: Scringis Result: Destroyed by X-57 Shotgunner with High-powered Shotgun Performance ------------- Evolutions (3) 1500 Regions Visited (8) 1600 Robots Destroyed (103) 515 Value Destroyed (2948) 2948 Prototype IDs (28) 560 Alien Tech Used (0) 0 Bonus (1055) 1055 TOTAL SCORE: 8178 Bonus ------- High Alert Combat Kills 255 Entered DSFs 500 Aligned with FarCom 300 Cogmind --------- Core Integrity 0/700 Matter 168/300 Energy 24/100 System Corruption 0% Temperature Cool (9) Movement Core (100) Ox1 Location -7/DSF Parts ------- > --- POWER (1) -------- (None) > --- PROPULSION (2) --- (None) > --- UTILITY (6) ------ Lightpack 2.0 > --- WEAPON (4) ------- (None) > --- INVENTORY (40) --- Armored Treads Improved Signal Interpreter Peak State ------------ > --- POWER ------------ Light Angular Momentum Engine > --- PROPULSION ------- Armored Treads Armored Treads > --- UTILITY ---------- Improved Heat Sink Lightpack 2.0 Hacking Suite > --- WEAPON ----------- Pulse Rifle Enhanced Autogun Enhanced Autogun > --- INVENTORY -------- Armored Treads Improved Signal Interpreter Recoil Stabilizer Improved Grenade Launcher [Rating: 59] Favorites ----------- Power Light Deuterium Engine Engine Light Deuterium Engine Power Core Light Nuclear Core Propulsion Armored Treads Treads Armored Treads Utility Improved Targeting Computer Device Improved Heat Sink Storage Lightpack 2.0 Processor Improved Targeting Computer Hackware Hacking Suite Protection Improved Light Armor Plating Weapon Improved EM Shotgun Energy Gun Improved EM Shotgun Energy Cannon EM Pulse Cannon Ballistic Gun Improved Assault Rifle Ballistic Cannon Light Cannon Launcher Improved Grenade Launcher Build | -11 -10 -9 -9 -9 -8 -8 -7 -7 ------- Run | Yrd Mat Mat Min Exi Min Mat Fac DSF Slots Evolved 6 | . . 2 . . . 2 2 . Power . | . . . . . . . . . Propulsion . | . . . . . . . . . Utility 4 | . . 2 . . . 1 1 . Weapon 2 | . . . . . . 1 1 . Parts Attached 65 | 5 3 19 5 1 . 26 . 6 Power 16 | 1 . 6 2 . . 6 . 1 Engine 11 | 1 . 2 2 . . 6 . . Core 5 | . . 4 . . . . . 1 Reactor . | . . . . . . . . . Propulsion 11 | 2 . 5 . . . 4 . . Treads 11 | 2 . 5 . . . 4 . . Leg . | . . . . . . . . . Wheel . | . . . . . . . . . Hover . | . . . . . . . . . Flight . | . . . . . . . . . Utility 13 | 1 1 3 1 1 . 5 . 1 Device 3 | . . . . . . 2 . 1 Storage 4 | 1 1 1 . 1 . . . . Processor 2 | . . 2 . . . . . . Hackware 1 | . . . . . . 1 . . Protection 3 | . . . 1 . . 2 . . Artifact . | . . . . . . . . . Weapon 25 | 1 2 5 2 . . 11 . 4 Energy Gun 7 | . 2 1 1 . . 3 . . Energy Cannon 4 | . . . . . . 1 . 3 Ballistic Gun 10 | 1 . 3 . . . 5 . 1 Ballistic Cannon 1 | . . 1 . . . . . . Launcher 3 | . . . 1 . . 2 . . Special Weapon . | . . . . . . . . . Impact Weapon . | . . . . . . . . . Slashing Weapon . | . . . . . . . . . Piercing Weapon . | . . . . . . . . . Special Melee Weapon . | . . . . . . . . . Unidentified Prototypes 5 | . 1 2 . . . 2 . . Parts Lost 34 | . . 9 1 . . 10 . 14 Power 7 | . . 2 1 . . 2 . 2 Propulsion 7 | . . 3 . . . 2 . 2 Utility 5 | . . . . . . 2 . 3 Weapon 15 | . . 4 . . . 4 . 7 Highest Loss Streak 14 | . . 5 1 . . 6 . 14 To Critical Strikes 1 | . . . . . . 1 . . Average Slot Usage (%) 76 | . 82 76 89 89 77 74 69 47 Engine 7 | . 14 5 9 11 11 8 7 3 Core 1 | . . 5 . . . . . . Treads 20 | . 28 21 22 22 22 17 15 8 Storage 10 | . 14 11 11 11 11 9 7 7 Processor 6 | . . 13 22 11 . . . . Hackware 3 | . . . . . . 8 7 3 Protection 4 | . . . 5 11 11 6 . . Energy Gun 7 | . 14 4 7 11 11 7 7 4 Ballistic Gun 10 | . 10 8 11 11 11 12 7 1 Ballistic Cannon 2 | . . 5 . . . . . . Peak Build Rating 59 | 5 10 20 24 49 50 59 58 59 Average Rating 34 | 4 8 14 21 35 49 54 58 49 On Entrance 30 | . 5 10 19 24 49 50 58 58 Naked Turns . | . . . . . . . . . Heaviest Build 34 | 11 21 31 34 34 19 31 27 32 Greatest Support 40 | 40 40 40 40 40 40 40 40 40 Greatest Overweight (x) 4 | . . . . . . 1 . 4 Average Overweight (x) . | . . . . . . . . . Largest Inventory Capacity 40 | 8 10 15 15 40 40 40 40 40 Average Capacity 27 | 7 9 13 15 26 40 40 40 40 Most Carried 10 | 3 5 10 8 9 9 9 4 5 Average Carried 6 | 1 4 7 6 5 7 4 4 3 Final Capacity 40 | 8 10 15 15 40 40 40 40 40 Final Carried 9 | 2 5 8 6 6 9 4 4 2 Class Distribution -------------------- 48% | Mutant 28% | Hauler-Mutant 23% | Hauler-Skirmisher Dominant Class ---------------- Mutant | -10/Materials Mutant | -9/Materials Mutant | -9/Mines Mutant | -9/Exiles Hauler-Mutant | -8/Mines Hauler-Skirmisher | -8/Materials Hauler-Skirmisher | -7/Factory Hauler-Skirmisher | -7/DSF Resources | -11 -10 -9 -9 -9 -8 -8 -7 -7 ----------- Run | Yrd Mat Mat Min Exi Min Mat Fac DSF Matter Collected 1828 | 45 75 744 102 . 42 820 . . Remotely . | . . . . . . . . . Salvage Created 3431 | . 147 1253 29 . 176 1725 . 101 Parts 216 | . 14 96 2 . 13 85 . 6 Haulers Intercepted 5 | . . 3 . . . 2 . . Recyclers Shooed 2 | . . 1 . . . 1 . . Parts Field Recycled . | . . . . . . . . . Retrieved Matter . | . . . . . . . . . Parts Self-Destructed . | . . . . . . . . . Prevented . | . . . . . . . . . Kills | -11 -10 -9 -9 -9 -8 -8 -7 -7 ------- Run | Yrd Mat Mat Min Exi Min Mat Fac DSF Combat Hostiles Destroyed 86 | . 7 29 7 . 5 36 . 2 Guns 54 | . 5 19 1 . 5 24 . . Cannons 11 | . . 5 . . . 4 . 2 AOE 21 | . 2 5 6 . . 8 . . Classes Destroyed 18 | . 2 6 3 . 1 6 . . Worker 1 | . . 1 . . . . . . Builder 5 | . . 4 . . . 1 . . Tunneler 1 | . . . 1 . . . . . Hauler 5 | . . 3 . . . 2 . . Recycler 3 | . . . . . 1 2 . . Operator 2 | . . 1 . . . 1 . . Watcher 6 | . . 4 . . . 2 . . Swarmer 27 | . 6 12 . . 5 4 . . Grunt 27 | . 1 9 . . . 17 . . Brawler 1 | . . . . . . 1 . . Duelist 2 | . . . . . . 2 . . Protector 1 | . . . . . . 1 . . Sentry 15 | . . 8 . . . 7 . . Demolisher 1 | . . . 1 . . . . . Specialist 4 | . . . . . . 2 . 2 Hunter 1 | . . . . . . 1 . . Heavy 1 | . . . . . . 1 . . Assembled 6 | . . . 6 . . . . . Best Kill Streak 13 | . 4 13 8 . 2 7 . 1 Combat Bots Only 9 | . 4 9 7 . 2 6 . 1 Max Kills in Single Turn 6 | . 1 3 6 . 1 3 . 1 Gunslinging . | . . . . . . . . . Exploded 5 | . 1 2 5 . . 3 . . Melee . | . . . . . . . . . Uniques/NPCs Destroyed . | . . . . . . . . . Combat | -11 -10 -9 -9 -9 -8 -8 -7 -7 -------- Run | Yrd Mat Mat Min Exi Min Mat Fac DSF Hostile Shots Fired 570 | . 26 198 8 . 19 166 . 153 Missed 182 | . 9 62 1 . 6 51 . 53 Damage Taken 6413 | . 206 1728 251 . 107 2167 . 1954 Core 1292 | . 50 287 11 . . 235 . 709 Absorbed by Shields . | . . . . . . . . . Regen/Repaired (Parts) 72 | . . . . . . 72 . . Core Remaining (%) 65 | 100 80 . . . 25 57 . . Volleys Fired 242 | . 11 96 9 . 10 106 . 10 Largest 3 | . 2 2 2 . 2 3 . 3 Hottest 223 | . 90 90 68 . 68 131 . 223 Shots Fired 481 | . 22 155 14 . 20 248 . 22 Gun 373 | . 22 107 10 . 20 209 . 5 Cannon 88 | . . 48 . . . 23 . 17 Launcher 20 | . . . 4 . . 16 . . Special . | . . . . . . . . . Kinetic 284 | . 10 118 5 . 10 141 . . Thermal 64 | . . . . . . 42 . 22 Explosive 20 | . . . 4 . . 16 . . Electromagnetic 113 | . 12 37 5 . 10 49 . . Robot Hit Streak 19 | . 4 14 16 . 3 19 . 10 Robot Miss Streak 5 | . 5 5 2 . 2 5 . 1 Penetration Max 1 | . . . . . . 1 . . Secondary Targets 6 | . 2 2 . . 2 . . . Max Gunslinging Chain 1 | . 1 1 . . 1 . . . Shots Hit Robots 328 | . 12 108 10 . 12 168 . 18 Core Hits 200 | . 9 62 22 . 7 95 . 5 Critical Kills 1 | . . 1 . . . . . . Critical Parts Destroyed 1 | . . . . . . 1 . . Critical Strikes 7 | . . 4 . . . 3 . . Burn 2 | . . . . . . 2 . . Destroy 3 | . . 2 . . . 1 . . Blast 2 | . . 2 . . . . . . Melee Attacks . | . . . . . . . . . Impact . | . . . . . . . . . Slashing . | . . . . . . . . . Piercing . | . . . . . . . . . Sneak Attacks . | . . . . . . . . . Combat Hostiles . | . . . . . . . . . Follow-up Attacks . | . . . . . . . . . Damage Inflicted 7906 | . 294 2129 668 . 149 4214 . 452 Guns 4074 | . 149 1219 126 . 144 2369 . 67 Cannons 1419 | . . 597 . . . 437 . 385 Explosions 2354 | . 145 286 542 . . 1381 . . Melee . | . . . . . . . . . Ramming 59 | . . 27 . . 5 27 . . Kinetic 2759 | . 7 1302 58 . 12 1380 . . Thermal 1625 | . 145 286 . . . 742 . 452 Explosive 1744 | . . . 542 . . 1202 . . Electromagnetic 1719 | . 142 514 68 . 132 863 . . Impact . | . . . . . . . . . Slashing . | . . . . . . . . . Piercing . | . . . . . . . . . Highest Corruption 1 | . . . . . . 1 . . Average Corruption 1 | . . . . . . 1 . . Corruption Purged . | . . . . . . . . . Corruption Blocked . | . . . . . . . . . Effects 3 | . . . . . . 3 . . Heat Flow Errors 1 | . . . . . . 1 . . Data Loss (minor) 1 | . . . . . . 1 . . Alerts 1 | . . . . . . 1 . . Overload Shots . | . . . . . . . . . Overflow Damage 92 | . . 34 28 . . 30 . . Projectiles 34 | . . 34 . . . . . . Explosions 58 | . . . 28 . . 30 . . Melee . | . . . . . . . . . Knockbacks 5 | . . 4 . . . 1 . . Impact 1 | . . . . . . 1 . . Kinetic 4 | . . 4 . . . . . . Secondary . | . . . . . . . . . Self-Inflicted Damage 364 | . 68 90 33 . . 173 . . Shots 10 | . 2 3 1 . . 4 . . Rammed 15 | . . 7 . . 2 6 . . Targets Rammed 16 | . . 7 . . 2 7 . . Kicked . | . . . . . . . . . Crushed 1 | . . . . . . 1 . . Highest Temperature 360 | . 64 88 . . 24 360 . 130 Average Temperature 65 | . 30 29 . . 8 91 . 49 Received Heat Transfer 1302 | . 6 594 . . . 477 . 225 Effects 3 | . . . . . . 3 . . Shutdowns 1 | . . . . . . 1 . . Matter Decay 1 | . . . . . . 1 . . Short Circuit 1 | . . . . . . 1 . . Siege Activations . | . . . . . . . . . Robots Corrupted . | . . . . . . . . . Combat Hostiles . | . . . . . . . . . Parts Fried 14 | . . 3 . . 1 10 . . Impact Corruptions . | . . . . . . . . . Robots Melted . | . . . . . . . . . Combat Hostiles . | . . . . . . . . . Parts Melted 1 | . . . . . . 1 . . Heat Transferred 3018 | . 200 450 . . . 1470 . 898 Parts Sabotaged . | . . . . . . . . . Parts Stolen . | . . . . . . . . . Parts Stripped . | . . . . . . . . . Power Chain Reactions 7 | . 2 3 . . . 2 . . Alert | -11 -10 -9 -9 -9 -8 -8 -7 -7 ------- Run | Yrd Mat Mat Min Exi Min Mat Fac DSF Peak Influence 704 | . 179 521 251 . 175 704 319 238 Initial 319 | . . 75 193 . . 68 319 223 Average 277 | . 85 334 224 . 32 340 319 200 Maximum Alert Level 3 | . . 2 1 . . 3 1 1 Low Security (%) 45 | 100 100 28 30 . 100 36 . 40 Level 1 18 | . . 25 69 . . 14 100 59 Level 2 33 | . . 45 . . . 41 . . Level 3 2 | . . . . . . 7 . . Level 4 . | . . . . . . . . . Level 5 . | . . . . . . . . . High Security . | . . . . . . . . . Max Security . | . . . . . . . . . Squads Dispatched 8 | . . . . . . 6 . 2 Investigation . | . . . . . . . . . Extermination . | . . . . . . . . . Reinforcement 6 | . . . . . . 4 . 2 Assault 2 | . . . . . . 2 . . Garrison . | . . . . . . . . . Intercept . | . . . . . . . . . Searches Triggered . | . . . . . . . . . Construction Impeded . | . . . . . . . . . Haulers Reinforced . | . . . . . . . . . Active Scanning Responses . | . . . . . . . . . Cargo Convoy Interrupts . | . . . . . . . . . Stealth | -11 -10 -9 -9 -9 -8 -8 -7 -7 --------- Run | Yrd Mat Mat Min Exi Min Mat Fac DSF Distress Signals 6 | . . 2 . . . 4 . . Communications Jammed . | . . . . . . . . . Distress Signals . | . . . . . . . . . Times Spotted 136 | . 7 46 15 . 8 54 . 6 Peak Tracking Total 17 | . 4 9 17 . 3 5 . 5 Tactical Retreats 9 | . 1 3 1 . 2 2 . . Traps | -11 -10 -9 -9 -9 -8 -8 -7 -7 ------- Run | Yrd Mat Mat Min Exi Min Mat Fac DSF Traps Triggered 6 | . . 1 . . . 4 . 1 Indirectly . | . . . . . . . . . Trap Hack Attempts . | . . . . . . . . . Triggered . | . . . . . . . . . Disarmed . | . . . . . . . . . Reprogrammed . | . . . . . . . . . Reused . | . . . . . . . . . Traps Extracted . | . . . . . . . . . Installed . | . . . . . . . . . Triggered . | . . . . . . . . . Machines | -11 -10 -9 -9 -9 -8 -8 -7 -7 ---------- Run | Yrd Mat Mat Min Exi Min Mat Fac DSF Machines Disabled 5 | . . 2 . . . 3 . . Max in Single Turn 1 | . . 1 . . . 1 . . Garrison Access 1 | . . . . . . 1 . . Machines Repaired . | . . . . . . . . . Machines Dismantled . | . . . . . . . . . Machines Sabotaged . | . . . . . . . . . Overloaded Fab Kills . | . . . . . . . . . Hacking | -11 -10 -9 -9 -9 -8 -8 -7 -7 --------- Run | Yrd Mat Mat Min Exi Min Mat Fac DSF Machines Accessed 4 | . . . . 1 . 2 1 . Terminals 1 | . . . . . . . 1 . Fabricators . | . . . . . . . . . Repair Stations 1 | . . . . . . 1 . . Recycling Units . | . . . . . . . . . Scanalyzers . | . . . . . . . . . Garrison Access 1 | . . . . . . 1 . . Total Hacks 6 | . . . . 1 . 4 1 . Successful 5 | . . . . 1 . 3 1 . Failed 1 | . . . . . . 1 . . Catastrophic . | . . . . . . . . . Database Lockouts . | . . . . . . . . . Manual 1 | . . . . 1 . . . . Terminals 1 | . . . . . . . 1 . Fabricators . | . . . . . . . . . Repair Stations 3 | . . . . . . 3 . . Recycling Units . | . . . . . . . . . Scanalyzers . | . . . . . . . . . Garrison Access 1 | . . . . . . 1 . . Terminal Hacks 2 | . . . . 1 . . 1 . Open DSF 1 | . . . . . . . 1 . Derelict Proto ID Bank 1 | . . . . 1 . . . . Fabricator Hacks . | . . . . . . . . . Repair Station Hacks 2 | . . . . . . 2 . . Scan Component 1 | . . . . . . 1 . . Repair 1 | . . . . . . 1 . . Recycling Unit Hacks . | . . . . . . . . . Scanalyzer . | . . . . . . . . . Garrison Access Hacks 1 | . . . . . . 1 . . Seal Access 1 | . . . . . . 1 . . Unauthorized Hacks . | . . . . . . . . . Terminals . | . . . . . . . . . Fabricators . | . . . . . . . . . Repair Stations . | . . . . . . . . . Recycling Units . | . . . . . . . . . Scanalyzers . | . . . . . . . . . Garrison Access . | . . . . . . . . . Data Cores Recovered 1 | . . 1 . . . . . . Used . | . . . . . . . . . Hacking Detections 1 | . . . . . . 1 . . Full Trace Events 1 | . . . . . . 1 . . Feedback Events . | . . . . . . . . . Feedback Blocked . | . . . . . . . . . Robot Schematics Acquired . | . . . . . . . . . Robots Built . | . . . . . . . . . Authchips . | . . . . . . . . . Time . | . . . . . . . . . Total Robot Build Rating . | . . . . . . . . . Part Schematics Acquired . | . . . . . . . . . Parts Built . | . . . . . . . . . Authchips . | . . . . . . . . . Time . | . . . . . . . . . Total Part Build Rating . | . . . . . . . . . Parts Repaired 1 | . . . . . . 1 . . Time 44 | . . . . . . 44 . . Parts Recycled . | . . . . . . . . . Recycled Matter . | . . . . . . . . . Retrieved Matter . | . . . . . . . . . Retrieved Components . | . . . . . . . . . Parts Scanalyzed . | . . . . . . . . . Part Schematics Acquired . | . . . . . . . . . Parts Damaged . | . . . . . . . . . Bothacking | -11 -10 -9 -9 -9 -8 -8 -7 -7 ------------ Run | Yrd Mat Mat Min Exi Min Mat Fac DSF Used RIF Installer . | . . . . . . . . . Robots Hacked . | . . . . . . . . . Non-combat . | . . . . . . . . . Combat . | . . . . . . . . . Robot Hacks Applied . | . . . . . . . . . Relay Couplers Released . | . . . . . . . . . Fabnet Peak Effective % . | . . . . . . . . . Robots Rewired . | . . . . . . . . . Allies Hacked . | . . . . . . . . . Hacks Repelled . | . . . . . . . . . Allies | -11 -10 -9 -9 -9 -8 -8 -7 -7 -------- Run | Yrd Mat Mat Min Exi Min Mat Fac DSF Total Allies . | . . . . . . . . . Largest Group . | . . . . . . . . . Highest-Rated Group . | . . . . . . . . . Highest-Rated Ally . | . . . . . . . . . Total Orders . | . . . . . . . . . Ally Attacks . | . . . . . . . . . Total Damage . | . . . . . . . . . Kills . | . . . . . . . . . Allies Corrupted . | . . . . . . . . . Allies Melted . | . . . . . . . . . Intel | -11 -10 -9 -9 -9 -8 -8 -7 -7 ------- Run | Yrd Mat Mat Min Exi Min Mat Fac DSF Robot Analysis Total . | . . . . . . . . . Derelict Logs Recovered . | . . . . . . . . . Drone Launches . | . . . . . . . . . Drone Recoveries . | . . . . . . . . . Exploration | -11 -10 -9 -9 -9 -8 -8 -7 -7 ------------- Run | Yrd Mat Mat Min Exi Min Mat Fac DSF Turns Passed 6039 | 90 274 2137 148 411 675 2199 17 88 Spaces Moved 2800 | 55 144 1076 70 238 361 822 11 23 Core 10 | 9 . . . . . . . 1 Treads 2790 | 46 144 1076 70 238 361 822 11 22 Legs . | . . . . . . . . . Wheels . | . . . . . . . . . Hover . | . . . . . . . . . Flight . | . . . . . . . . . Fastest Speed 50 | 50 160 160 170 170 170 170 170 170 Average Speed 169 | 142 160 163 170 170 170 179 170 176 Slowest Speed 250 | 160 160 170 170 170 170 250 170 250 Overloaded Moves . | . . . . . . . . . Propulsion Burnouts . | . . . . . . . . . Robots Hopped . | . . . . . . . . . Cave-ins Triggered . | . . . . . . . . . Exploration Rate (%) 47 | 4 31 85 23 62 69 74 . 31 Regions Visited 8 Branch Regions 3 Pre-discovered Areas . | . . . . . . . . . Known Exits Taken 1 | . . . . . . . 1 . Unknown Exits Taken 7 | 1 1 1 1 1 1 1 . . Scrap Searched 1 | . . . . . 1 . . . Spaces Dug . | . . . . . . . . . Terrain Destroyed 192 | . 4 15 24 . . 149 . . Melee . | . . . . . . . . . Projectile . | . . . . . . . . . AOE 192 | . 4 15 24 . . 149 . . Terrain Rammed . | . . . . . . . . . Walls Destroyed . | . . . . . . . . . Machines Disabled . | . . . . . . . . . Actions | -11 -10 -9 -9 -9 -8 -8 -7 -7 --------- Run | Yrd Mat Mat Min Exi Min Mat Fac DSF Total 3695 | 68 168 1297 84 246 401 1370 10 51 Wait 479 | . 3 63 . . 25 380 . 8 Move 2792 | 54 143 1075 69 237 360 821 10 23 Hop . | . . . . . . . . . Pick Up 72 | 8 6 25 1 5 3 20 . 4 Fast Attach . | . . . . . . . . . Attach 48 | 5 1 14 3 1 . 18 . 6 Detach . | . . . . . . . . . Swap 18 | . 2 5 2 . . 9 . . Drop 27 | 1 2 12 . 3 . 9 . . Fire 242 | . 11 96 9 . 10 106 . 10 Melee . | . . . . . . . . . Ram 1 | . . 1 . . . . . . Kick . | . . . . . . . . . Crush 15 | . . 6 . . 2 7 . . Escape Stasis . | . . . . . . . . . Rewire 1 | . . . . . 1 . . . Trap . | . . . . . . . . . Miscellaneous . | . . . . . . . . . Route ------- -11/Scrapyard -10/Materials -9/Materials (discovered 5 exits: *Mat x3 / [*Min x2]) -9/Mines (discovered 2 exits: *Mat / *Exi) -9/Exiles -8/Mines -8/Materials (discovered 2 exits: *Fac x2) -7/Factory -7/DSF History --------- Turn | Location | Event 18 | -11/Scrapyard | Discovered new exit (range 16) 91 | -11/Scrapyard | Entered Materials 321 | -10/Materials | Build established: Mutant 336 | -10/Materials | Discovered new exit (range 16) 365 | -10/Materials | Entered another Materials area 365 | -9/Materials | Evolved 2 slots: Utility x2 582 | -9/Materials | Discovered new exit (range 8) 989 | -9/Materials | Discovered new exit (range 5) 1137 | -9/Materials | Destroyed 9 combat bots 1140 | -9/Materials | Lost 5 parts (1p2n2w) 1316 | -9/Materials | Core integrity fell below 50% 1344 | -9/Materials | Lost 3 parts (1p1n1w) 1441 | -9/Materials | Discovered new exit (range 3) 1752 | -9/Materials | Discovered new exit (range 10) 2441 | -9/Materials | Discovered new exit (range 12) 2502 | -9/Materials | Entered Mines 2502 | -9/Mines | Discovered new exit (range 10) 2539 | -9/Mines | Assembled infested the area 2577 | -9/Mines | Met 8R-AWN 2584 | -9/Mines | Destroyed 7 combat bots 2643 | -9/Mines | Discovered new exit (range 5) 2650 | -9/Mines | Entered Exiles 2691 | -9/Exiles | Welcomed by 8R-AWN 2722 | -9/Exiles | Met EX-HEX 2771 | -9/Exiles | Met EX-BIN 2800 | -9/Exiles | Aligned with FarCom system 2802 | -9/Exiles | Given EX-Vault access code 2870 | -9/Exiles | Opened EX-Vault 2877 | -9/Exiles | Found Lightpack 2.0 2932 | -9/Exiles | Warned to stay clear of 0b10 Research branches 2983 | -9/Exiles | Met EX-DEC 3046 | -9/Exiles | Discovered new exit (range 11) 3061 | -9/Exiles | Left Exiles lab with Lightpack 2.0 3061 | -9/Exiles | Entered Mines 3166 | -8/Mines | Build established: Hauler-Mutant 3723 | -8/Mines | Discovered new exit (range 8) 3736 | -8/Mines | Entered Materials 3736 | -8/Materials | Evolved 2 slots: Utility x1, Weapon x1 4394 | -8/Materials | Build established: Hauler-Skirmisher 4650 | -8/Materials | Discovered new exit (range 10) 4719 | -8/Materials | Lost 6 parts (1p2n1u2w) 4976 | -8/Materials | Build established: Hauler-Mutant 5336 | -8/Materials | First assault squad dispatched 5360 | -8/Materials | Repaired Imp. Deuterium Engine 5476 | -8/Materials | Discovered new exit (range 16) 5477 | -8/Materials | Build established: Hauler-Skirmisher 5935 | -8/Materials | Entered Factory 5935 | -7/Factory | Evolved 2 slots: Utility x1, Weapon x1 5951 | -7/Factory | Identified exit to DSF 5952 | -7/Factory | Entered DSF 5975 | -7/DSF | Additional patrols routed to DSF 6016 | -7/DSF | Core integrity fell below 50% 6035 | -7/DSF | Core integrity fell below 20% 6040 | -7/DSF | Destroyed by X-57 Shotgunner with High-powered Shotgun Last Messages --------------- 06004_ Plasma Cannon destroyed. 06007_ Penetrated by Slug. 06010_ Imp. Heat Sink destroyed. 06012_ Acquired Plasma Cannon. 06012_ Arm. Treads destroyed. 06012_ Recoil Stabilizer destroyed. 06012_ Critical hit (Blast). 06012_ Knocked back. 06015_ Acquired Nuclear Core. 06017_ Pulse Rifle destroyed. 06020_ Critical hit (Burn: +37). 06026_ X-67 Chaingunner destroyed. 06027_ Nuclear Core destroyed. 06031_ Plasma Cannon destroyed. 06034_ Slug penetrates Wall. 06036_ Plasma Cannon destroyed. 06037_ Enh. Autogun destroyed. 06039_ Slug penetrates G-47 Trooper. 06039_ G-47 Trooper knocked back. [Achievement: Back For More] Map ----- +----------------------------------------------------+ | | | | | | | | | | | | | | | | | | | | | | | | | ??????????????????????????????????????????????? | | ??????????????????????????????????????????????? | | ??????????????????????????????????????????????? | | ??????????????????????????????????????????????? | | ?????????????????????????????????????#""??????? | | ?????????????????????????????????????#"#??????? | | ????????????????????#########???????##"####???? | | ?????????????######?#// !!#########"""""#???? | | ??????????""## #!!!#// !!# #//##"""""#???? | | ?????????? ""##"#? | | ?????????? % """""#? | | ????????????????# ###%[!;## #//## ""###?? | | ????????????????# ;##x%!;## #//### ###???? | | ???????????????????#%g@!! ########?# #?????? | | ???????????????????#;g] #???????? /#????? | | ??????????C????????##] % #??????? /#????? | | ????????????????????#;;% ###??????### ##????? | | ????????????????????#!! !!#????????/ /?????? | | ????????????????????#!! !!#????????/ /?????? | | ????????????????????#!! !!#????????/ /?????? | | ????????????????????##; ###???????## ##????? | | ?????????????????????#; #??????????# !?????? | | ??????????????????????a H a??????????# !?????? | | ?????????????????????? ????????? ?????? | | ?????????????????????? ???????? ?????? | | ?????????????????????? ???????? ?????? | | ??????????????????????a a##!???????# ??????? | | ??????????????????????# ##?!!???????????????? | | ??????????????????????? #???????????????????? | | ???????????????????????? [???????????????????? | | ???????????????????????? ?????????????????????? | | ??????????????????????????????????????????????? | | ??????????????????????????????????????????????? | | ??????????????????????????????????????????????? | | ??????????????????????????????????????????????? | | ??????????????????????????????????????????????? | | ??????????????????????????????????????????????? | | ??????????????????????????????????????????????? | +----------------------------------------------------+ Best States ------------- Heat Dissipation 48 Energy Generation 18 Energy Capacity 290 Matter Stores 300 Matter Capacity 300 Sight Range 16 Robot Scan Range 15 Terrain Scan Density 10 Armor Coverage 225 Evasion (%) 50 Targeting Accuracy 12 Recoil Reduction 5 Offensive Hacking 10 Item Schematics ----------------- None Robot Schematics ------------------ None Fabricated ------------ Nothing Alien Tech Used ----------------- None Achievements -------------- Back For More Quick And Dirty Challenges ------------ None Game ------ Seed StasisMetafiberAmplifier Manual? 0 Play Time 00:35:05 Cumulative 15.1 hours Start 2025.02.28 @ 14:25:07 End 2025.03.01 @ 19:35:12 Sessions 2 Manual Loads 0 Difficulty Rogue Special Mode None Game No. 50 Rogue 50 Adventurer 0 Explorer 0 Win Type - Total 0 Types 0/0/0/0/0/0/0/0/0 Lore% 10 Gallery% 15 Achievement% 16 Wizard Run 0 Options --------- Layout 1 ASCII 0 Keyboard 0 Movement Numpad Keybinds 0 Fullscreen 2 Font 24/Smallcaps Map View 50x35 Zoom Use 0% Tactical HUD 1 Map Filters NONE Filters NONE Steam 1 RUN: 3b1e10a2-a9d4-4cbf-a2c3-da11b9af92d5